Cogmind - Beta 10 @@@ ROGUE MODE // 2020.09.16 @ 20:42:49 Player: Pimski Result: Destroyed by 8R-AWN with 8R-AWN's Boregun Performance ------------- Evolutions (1) 500 Regions Visited (5) 1000 Robots Destroyed (63) 315 Value Destroyed (960) 960 Prototype IDs (31) 620 Alien Tech Used (0) 0 Bonus (280) 280 TOTAL SCORE: 3675 Bonus ------- Aligned with FarCom 300 Friendly Fire -20 Cogmind --------- Core Integrity 0/400 Matter 271/300 Energy 96/100 System Corruption 1% Temperature Cool (0) Movement Treading (180) Ox1 Location -9/Exiles Parts ------- > --- POWER (1) -------- (None) > --- PROPULSION (2) --- Light Treads Light Treads > --- UTILITY (4) ------ High-capacity Storage Unit High-capacity Storage Unit Hardened Light Armor Plating Hardened Light Armor Plating > --- WEAPON (2) ------- Mining Claw > --- INVENTORY (20) --- Light Treads Light Treads Light Treads Advanced Myomer Leg Light Armor Plating Light Armor Plating Light Armor Plating Insulated Plating Light EM Pulse Cannon Assault Rifle Assault Rifle Assault Rifle Light Assault Rifle Light Assault Rifle Light Assault Rifle Deploy-a-Sentry Peak State ------------ > --- POWER ------------ Light Angular Momentum Engine > --- PROPULSION ------- Light Treads Light Treads > --- UTILITY ---------- High-capacity Storage Unit High-capacity Storage Unit Hardened Light Armor Plating Hardened Light Armor Plating > --- WEAPON ----------- Light EM Pulse Cannon Rocket Launcher > --- INVENTORY -------- Light Treads Light Treads Light Treads Light Treads Light Treads Light Armor Plating Light Armor Plating Light Armor Plating Hardened Light Armor Plating Hardened Light Armor Plating Insulated Plating Light EM Pulse Cannon Assault Rifle Assault Rifle Assault Rifle Light Assault Rifle Light Assault Rifle Light Assault Rifle Mining Claw Deploy-a-Sentry [Rating: 20] Favorites ----------- Power Ion Engine Engine Ion Engine Propulsion Light Treads Treads Light Treads Leg Aluminum Leg Utility High-capacity Storage Unit Storage High-capacity Storage Unit Protection Hardened Light Armor Plating Weapon Assault Rifle Energy Gun Medium Laser Energy Cannon Light EM Pulse Cannon Ballistic Gun Assault Rifle Launcher Rocket Launcher Slashing Weapon Mining Claw Build | -11 -10 -10 -9 -9 -9 ------- Run | Scr Mat Min Mat Min Exi Slots Evolved 2 | . . . 2 . . Power . | . . . . . . Propulsion . | . . . . . . Utility 2 | . . . 2 . . Weapon . | . . . . . . Parts Attached 40 | . 10 2 9 8 11 Power 2 | . . 1 . . 1 Engine 2 | . . 1 . . 1 Core . | . . . . . . Reactor . | . . . . . . Propulsion 8 | . 2 . 3 1 2 Treads 8 | . 2 . 3 1 2 Leg . | . . . . . . Wheel . | . . . . . . Hover . | . . . . . . Flight . | . . . . . . Utility 13 | . 2 1 4 2 4 Device . | . . . . . . Storage 5 | . 2 1 1 . 1 Processor . | . . . . . . Hackware . | . . . . . . Protection 8 | . . . 3 2 3 Artifact . | . . . . . . Weapon 17 | . 6 . 2 5 4 Energy Gun 2 | . 2 . . . . Energy Cannon 3 | . 1 . . . 2 Ballistic Gun 8 | . 3 . 2 3 . Ballistic Cannon . | . . . . . . Launcher 3 | . . . . 2 1 Special Weapon . | . . . . . . Impact Weapon . | . . . . . . Slashing Weapon 1 | . . . . . 1 Piercing Weapon . | . . . . . . Special Melee Weapon . | . . . . . . Unidentified Prototypes . | . . . . . . Parts Lost 14 | . 3 . 1 3 7 Power 2 | . . . . 1 1 Propulsion 2 | . . . . . 2 Utility 3 | . . . . 1 2 Weapon 7 | . 3 . 1 1 2 Highest Loss Streak 5 | . 2 . 1 3 5 Average Slot Usage (%) 95 | . 99 100 100 89 89 Engine 8 | . 14 14 11 1 1 Treads 20 | . 10 28 22 22 22 Leg 4 | . 17 . . . . Storage 28 | . 27 28 31 33 26 Protection 8 | . . . 12 10 17 Energy Gun 2 | . 11 . . . . Ballistic Gun 21 | . 16 28 22 21 20 Naked Turns . | . . . . . . Heaviest Build 92 | 13 57 72 92 92 89 Greatest Support 40 | 20 40 40 40 40 40 Greatest Overweight (x) 2 | . 2 1 2 2 2 Average Overweight (x) 1 | . 1 1 1 2 1 Largest Inventory Capacity 26 | 6 18 20 26 26 26 Average Capacity 21 | 6 16 18 24 26 22 Most Carried 26 | 6 18 20 26 26 26 Average Carried 20 | 6 15 18 24 24 21 Final Capacity 26 | 6 18 20 26 26 20 Final Carried 26 | 6 18 20 26 26 16 Class Distribution -------------------- 65% | Hauler-Mutant 34% | Mutant Dominant Class ---------------- Mutant | -10/Materials Mutant | -10/Mines Hauler-Mutant | -9/Materials Hauler-Mutant | -9/Mines Hauler-Mutant | -9/Exiles Resources | -11 -10 -10 -9 -9 -9 ----------- Run | Scr Mat Min Mat Min Exi Matter Collected 1402 | 200 265 52 417 266 202 Remotely . | . . . . . . Salvage Created 1979 | 98 770 149 790 172 . Parts 89 | 1 40 6 37 5 . Haulers Intercepted 5 | . 2 . 3 . . Recyclers Shooed 6 | . 3 1 2 . . Parts Field Recycled . | . . . . . . Retrieved Matter . | . . . . . . Parts Self-Destructed . | . . . . . . Prevented . | . . . . . . Kills | -11 -10 -10 -9 -9 -9 ------- Run | Scr Mat Min Mat Min Exi Combat Hostiles Destroyed 46 | . 12 2 12 14 6 Guns 28 | . 12 2 12 2 . AOE 18 | . . . . 12 6 Classes Destroyed 10 | 1 7 . 1 1 . Worker 1 | . 1 . . . . Builder 1 | . 1 . . . . Hauler 5 | . 2 . 3 . . Recycler 7 | 1 2 1 2 1 . Operator 2 | . 2 . . . . Watcher 1 | . 1 . . . . Swarmer 9 | . 3 . 4 2 . Grunt 13 | . 9 2 2 . . Sentry 6 | . . . 6 . . Assembled 18 | . . . . 12 6 Best Kill Streak 12 | 1 6 2 4 12 6 Combat Bots Only 11 | . 4 1 4 11 6 Max Kills in Single Turn 3 | 1 2 1 1 2 3 Gunslinging 1 | . 1 . . . . Exploded 3 | . . . . 2 3 Melee . | . . . . . . Uniques/NPCs Destroyed 1 | . . . . . 1 EX-DEC (-9/Exiles) EX-BIN (-9/Exiles) EX-HEX (-9/Exiles) Combat | -11 -10 -10 -9 -9 -9 -------- Run | Scr Mat Min Mat Min Exi Damage Taken 2971 | . 488 65 684 466 1268 Core 534 | . 119 11 70 66 268 Absorbed by Shields . | . . . . . . Core Remaining (%) 74 | 100 . 48 . . . Volleys Fired 177 | 2 58 9 73 26 9 Largest 2 | 2 2 2 2 2 2 Hottest 112 | 80 70 40 40 40 112 Shots Fired 335 | 4 116 18 146 39 12 Gun 312 | 4 116 18 146 28 . Cannon 7 | . . . . . 7 Launcher 16 | . . . . 11 5 Special . | . . . . . . Kinetic 256 | . 64 18 146 28 . Thermal 52 | . 52 . . . . Explosive 16 | . . . . 11 5 Electromagnetic 11 | 4 . . . . 7 Robot Hit Streak 21 | 1 19 16 21 9 5 Robot Miss Streak 3 | 2 3 . 3 2 1 Penetration Max . | . . . . . . Secondary Targets 1 | . 1 . . . . Max Gunslinging Chain 1 | . 1 . . . . Shots Hit Robots 282 | 1 89 15 113 25 39 Core Hits 121 | 1 36 8 33 29 14 Critical Hits 2 | . 1 . 1 . . Critical Kills . | . . . . . . Critical Parts Destroyed 2 | . 1 . 1 . . Melee Attacks 38 | . . . . . 38 Impact . | . . . . . . Slashing 38 | . . . . . 38 Piercing . | . . . . . . Sneak Attacks . | . . . . . . Combat Hostiles . | . . . . . . Follow-up Attacks . | . . . . . . Damage Inflicted 4876 | 15 1174 191 1275 1147 1074 Guns 2804 | 15 1143 165 1238 243 . Cannons 24 | . . . . . 24 Explosions 1269 | . . . . 904 365 Melee 685 | . . . . . 685 Ramming 94 | . 31 26 37 . . Kinetic 2272 | . 626 165 1238 243 . Thermal 517 | . 517 . . . . Explosive 1269 | . . . . 904 365 Electromagnetic 39 | 15 . . . . 24 Impact . | . . . . . . Slashing 685 | . . . . . 685 Piercing . | . . . . . . Highest Corruption 1 | . . . 1 1 1 Average Corruption 1 | . . . 1 1 1 Corruption Purged . | . . . . . . Effects 16 | . . . 1 6 9 Message Errors 6 | . . . 1 1 4 Energy Discharges 3 | . . . . 2 1 Data Loss (minor) 4 | . . . . 1 3 Targeting Errors 3 | . . . . 2 1 Overload Shots . | . . . . . . Overflow Damage 78 | . . . . 59 19 Projectiles . | . . . . . . Explosions 78 | . . . . 59 19 Melee . | . . . . . . Knockbacks 2 | . . 1 1 . . Impact 2 | . . 1 1 . . Kinetic . | . . . . . . Secondary . | . . . . . . Self-Inflicted Damage 142 | . . . . 142 . Shots 7 | . . . . 7 . Rammed 9 | . 3 2 4 . . Targets Rammed 10 | . 4 2 4 . . Kicked . | . . . . . . Crushed 1 | . 1 . . . . Highest Temperature 296 | 36 147 18 24 28 296 Average Temperature 45 | 21 38 11 6 17 139 Received Heat Transfer 541 | . 243 39 219 40 . Siege Activations . | . . . . . . Robots Corrupted . | . . . . . . Combat Hostiles . | . . . . . . Parts Fried . | . . . . . . Impact Corruptions . | . . . . . . Robots Melted . | . . . . . . Combat Hostiles . | . . . . . . Parts Melted 1 | . 1 . . . . Heat Transferred 1397 | . 1397 . . . . Parts Sabotaged . | . . . . . . Parts Stolen . | . . . . . . Parts Stripped . | . . . . . . Power Chain Reactions . | . . . . . . Missiles Intercepted . | . . . . . . Alert | -11 -10 -10 -9 -9 -9 ------- Run | Scr Mat Min Mat Min Exi Peak Influence 232 | 5 178 55 232 55 . Initial 22 | . 3 19 . 22 . Average 54 | 2 43 29 117 18 . Maximum Alert Level 1 | . . . 1 . . Low Security (%) 97 | 100 100 100 89 100 . Level 1 2 | . . . 10 . . Level 2 . | . . . . . . Level 3 . | . . . . . . Level 4 . | . . . . . . Level 5 . | . . . . . . High Security . | . . . . . . Max Security . | . . . . . . Squads Dispatched 6 | . 4 . 2 . . Investigation 1 | . 1 . . . . Extermination . | . . . . . . Reinforcement 5 | . 3 . 2 . . Assault . | . . . . . . Garrison . | . . . . . . Intercept . | . . . . . . Construction Impeded . | . . . . . . Haulers Reinforced . | . . . . . . Stealth | -11 -10 -10 -9 -9 -9 --------- Run | Scr Mat Min Mat Min Exi Distress Signals 3 | . 1 . 2 . . Communications Jammed . | . . . . . . Distress Signals . | . . . . . . Times Spotted 74 | . 25 3 23 15 8 Peak Tracking Total 8 | . 4 2 6 6 8 Tactical Retreats 4 | . 1 1 1 1 . Traps | -11 -10 -10 -9 -9 -9 ------- Run | Scr Mat Min Mat Min Exi Traps Triggered 2 | . 1 . 1 . . Indirectly . | . . . . . . Trap Hack Attempts . | . . . . . . Triggered . | . . . . . . Disarmed . | . . . . . . Reprogrammed . | . . . . . . Reused 1 | . . . . . 1 Traps Extracted . | . . . . . . Installed 2 | . . . . . 2 Triggered . | . . . . . . Machines | -11 -10 -10 -9 -9 -9 ---------- Run | Scr Mat Min Mat Min Exi Machines Disabled 2 | . . . . . 2 Max in Single Turn 1 | . . . . . 1 Machines Sabotaged . | . . . . . . Garrisons Compromised . | . . . . . . Overloaded Fab Kills . | . . . . . . Fab Network Shutdowns . | . . . . . . Hacking | -11 -10 -10 -9 -9 -9 --------- Run | Scr Mat Min Mat Min Exi Machines Accessed 18 | . 8 1 7 . 2 Terminals 13 | . 6 1 6 . . Fabricators . | . . . . . . Repair Stations . | . . . . . . Recycling Units 3 | . 2 . 1 . . Scanalyzers . | . . . . . . Garrison Access . | . . . . . . Total Hacks 56 | . 29 3 22 . 2 Successful 36 | . 18 1 15 . 2 Failed 19 | . 10 2 7 . . Catastrophic 1 | . . 1 . . . Database Lockouts 1 | . 1 . . . . Manual 33 | . 17 3 12 . 1 Terminals 50 | . 27 3 20 . . Fabricators . | . . . . . . Repair Stations . | . . . . . . Recycling Units 4 | . 2 . 2 . . Scanalyzers . | . . . . . . Garrison Access . | . . . . . . Terminal Hacks 23 | . 11 1 9 . 2 Record 1 | . . . . . 1 Robot Analysis 3 | . 1 1 1 . . Prototype ID Bank 5 | . 2 . 3 . . Branch Access Points 2 | . 1 . 1 . . Terminal Index 1 | . . . 1 . . Alert Level 1 | . . . 1 . . Unreport Threat 1 | . 1 . . . . Locate Traps 5 | . 5 . . . . Recall Reinforcements 1 | . . . 1 . . Hauler Manifests 2 | . 1 . 1 . . EX-Prototype ID Bank 1 | . . . . . 1 Fabricator Hacks . | . . . . . . Repair Station Hacks . | . . . . . . Recycling Unit Hacks 3 | . 2 . 1 . . Retrieve Components 3 | . 2 . 1 . . Scanalyzer . | . . . . . . Garrison Access Hacks . | . . . . . . Unauthorized Hacks 10 | . 5 . 5 . . Terminals 9 | . 5 . 4 . . Track 2 | . 1 . 1 . . Botnet 5 | . 3 . 2 . . Disrupt 1 | . 1 . . . . Operators 1 | . . . 1 . . Fabricators . | . . . . . . Repair Stations . | . . . . . . Recycling Units 1 | . . . 1 . . Mask 1 | . . . 1 . . Scanalyzers . | . . . . . . Garrison Access . | . . . . . . Data Cores Recovered . | . . . . . . Used . | . . . . . . Hacking Detections 12 | . 5 1 6 . . Full Trace Events . | . . . . . . Feedback Events . | . . . . . . Feedback Blocked . | . . . . . . Robot Schematics Acquired . | . . . . . . Robots Built . | . . . . . . Matter . | . . . . . . Time . | . . . . . . Total Robot Build Rating . | . . . . . . Part Schematics Acquired . | . . . . . . Parts Built . | . . . . . . Matter . | . . . . . . Time . | . . . . . . Total Part Build Rating . | . . . . . . Parts Repaired . | . . . . . . Time . | . . . . . . Parts Recycled . | . . . . . . Recycled Matter . | . . . . . . Retrieved Matter . | . . . . . . Retrieved Components 7 | . 6 . 1 . . Parts Scanalyzed . | . . . . . . Part Schematics Acquired . | . . . . . . Parts Damaged . | . . . . . . Bothacking | -11 -10 -10 -9 -9 -9 ------------ Run | Scr Mat Min Mat Min Exi Used RIF Installer . | . . . . . . Robots Hacked . | . . . . . . Non-combat . | . . . . . . Combat . | . . . . . . Robot Hacks Applied . | . . . . . . Relay Couplers Released . | . . . . . . Robots Rewired . | . . . . . . Allies Hacked . | . . . . . . Hacks Repelled . | . . . . . . Allies | -11 -10 -10 -9 -9 -9 -------- Run | Scr Mat Min Mat Min Exi Total Allies 1 | . . 1 . . . Largest Group 1 | . . 1 . . . Highest-Rated Group 31 | . . 31 . . . Highest-Rated Ally 31 | . . 31 . . . Total Orders . | . . . . . . Ally Attacks 9 | . . . . . 9 Total Damage 473 | . . . . . 473 Kills 4 | . . . . . 4 Allies Corrupted . | . . . . . . Allies Melted . | . . . . . . Turrets Deployed 2 | . . . . . 2 Intel | -11 -10 -10 -9 -9 -9 ------- Run | Scr Mat Min Mat Min Exi Robot Analysis Total 3 | . 1 1 1 . . Derelict Logs Recovered 3 | . . 2 . 1 . Drone Launches . | . . . . . . Drone Recoveries . | . . . . . . Exploration | -11 -10 -10 -9 -9 -9 ------------- Run | Scr Mat Min Mat Min Exi Turns Passed 6494 | 6 1529 906 1217 1028 1808 Spaces Moved 2933 | 1 713 479 467 431 842 Core . | . . . . . . Treads 2490 | . 271 479 467 431 842 Legs 443 | 1 442 . . . . Wheels . | . . . . . . Hover . | . . . . . . Flight . | . . . . . . Fastest Speed 120 | 120 120 180 180 200 180 Average Speed 188 | 120 176 180 196 200 191 Slowest Speed 200 | 120 180 180 200 200 200 Overloaded Moves . | . . . . . . Propulsion Burnouts . | . . . . . . Robots Hopped . | . . . . . . Cave-ins Triggered . | . . . . . . Exploration Rate (%) 67 | 2 96 99 49 89 69 Regions Visited 5 Branch Regions 3 Pre-discovered Areas 3 | . . 2 . . 1 Known Exits Taken 2 | . 1 . 1 . . Unknown Exits Taken 3 | 1 . 1 . 1 . Scrap Searched 3 | . . 1 . 2 . Spaces Dug 33 | . . . . 33 . Terrain Destroyed 97 | . . . . 69 28 Melee . | . . . . . . Projectile . | . . . . . . AOE 97 | . . . . 69 28 Terrain Rammed . | . . . . . . Walls Destroyed . | . . . . . . Machines Disabled . | . . . . . . Actions | -11 -10 -10 -9 -9 -9 --------- Run | Scr Mat Min Mat Min Exi Total 3524 | 2 872 506 628 558 958 Wait 205 | . 47 11 55 86 6 Move 2928 | . 712 478 466 430 842 Hop . | . . . . . . Pick Up 69 | . 27 2 13 5 22 Fast Attach 3 | . 2 . . 1 . Attach 18 | . 4 . 4 3 7 Detach . | . . . . . . Swap 19 | . 4 2 5 4 4 Drop 55 | . 14 2 8 3 28 Fire 177 | 2 58 9 73 26 9 Melee 38 | . . . . . 38 Ram . | . . . . . . Kick . | . . . . . . Crush 10 | . 4 2 4 . . Escape Stasis . | . . . . . . Rewire . | . . . . . . Trap 2 | . . . . . 2 Miscellaneous . | . . . . . . Route ------- -11/Scrapyard -10/Materials (discovered 4 exits: *Mat x3 / *Min) -10/Mines (discovered 2 exits: *Mat x2) -9/Materials (discovered 2 exits: [*Mat] / *Min) -9/Mines (discovered 3 exits: [*Mat x2] / *Exi) -9/Exiles (discovered 1 exit: [*Min]) History --------- Turn | Location | Event 7 | -11/Scrapyard | Discovered new exit (range 0) 7 | -11/Scrapyard | Entered Materials 45 | -10/Materials | Central database locked down 301 | -10/Materials | Build established: Mutant 432 | -10/Materials | Discovered new exit (range 14) 823 | -10/Materials | Identified exit to Mines 963 | -10/Materials | Discovered new exit (range 16) 1260 | -10/Materials | Discovered new exit (range 5) 1536 | -10/Materials | Entered Mines 1539 | -10/Mines | Received a Mining Laser from a helpful Derelict 1666 | -10/Mines | Learned location of Zion (-6) 1860 | -10/Mines | Discovered new exit (range 8) 1891 | -10/Mines | Discovered new exit (range 8) 1958 | -10/Mines | Core integrity fell below 50% 2442 | -10/Mines | Entered Materials 2442 | -9/Materials | Evolved 2 slots: Utility x2 2475 | -9/Materials | Identified exit to Mines 2521 | -9/Materials | Build established: Hauler-Mutant 2799 | -9/Materials | Discovered new exit (range 10) 3659 | -9/Materials | Entered Mines 3717 | -9/Mines | Met a Derelict bent on vengeance 3750 | -9/Mines | A weapon hastily lodged in a ceiling crevice suddenly fell to the ground 3777 | -9/Mines | Assembled infested the area 3870 | -9/Mines | Destroyed 11 combat bots 3877 | -9/Mines | Lost 3 parts (1p1u1w) 4107 | -9/Mines | Deemed a non-threat by the Exiles lab entrance 4107 | -9/Mines | Discovered new exit (range 5) 4256 | -9/Mines | Discovered new exit (range 16) 4286 | -9/Mines | Discovered new exit (range 13) 4304 | -9/Mines | Learned Materials garrison access intel 4509 | -9/Mines | Found a hidden stash of uninstalled traps 4687 | -9/Mines | Entered Exiles 4819 | -9/Exiles | Met 8R-AWN 4851 | -9/Exiles | Met EX-HEX 4951 | -9/Exiles | Met EX-DEC 5150 | -9/Exiles | Met EX-BIN 5174 | -9/Exiles | Aligned with FarCom system 5176 | -9/Exiles | Given EX-Vault access code 5222 | -9/Exiles | Opened EX-Vault 5234 | -9/Exiles | Found Deploy-a-Sentry 5236 | -9/Exiles | Found Deploy-a-Sentry 5239 | -9/Exiles | Found Deploy-a-Sentry 5249 | -9/Exiles | Found Modified TNC 5288 | -9/Exiles | Warned to stay clear of 0b10 Research branches 5475 | -9/Exiles | Discovered new exit (range 14) 6038 | -9/Exiles | DAS Turret deployed 6042 | -9/Exiles | DAS Turret deployed 6351 | -9/Exiles | Attacked by the Exiles 6352 | -9/Exiles | Allies destroyed EX-DEC 6359 | -9/Exiles | Allies destroyed EX-BIN 6379 | -9/Exiles | Allies destroyed EX-HEX 6386 | -9/Exiles | Core integrity fell below 50% 6428 | -9/Exiles | Core integrity fell below 20% 6454 | -9/Exiles | Lost 5 parts (1p2n1u1w) 6495 | -9/Exiles | Destroyed by 8R-AWN with 8R-AWN's Boregun Last Messages --------------- 06435_ Penetrated by HV Slug. 06437_ System corrupted: Mining Claw targeting data glitched. 06440_ Penetrated by HV Slug. 06442_ The unstable cave ceiling collapses. 06444_ Penetrated by HV Slug. 06444_ HV Slug penetrates Wall. 06448_ Penetrated by HV Slug. 06448_ Critical hit. 06452_ Penetrated by HV Slug. 06461_ Lgt. EM Pulse Cannon destroyed. 06465_ Penetrated by HV Slug. 06467_ 8R-AWN Prototype Leg ripped off. 06469_ Penetrated by HV Slug. 06478_ HV Slug penetrates Assembled Analyzer. 06482_ Penetrated by HV Slug. 06486_ HV Slug penetrates Wall. 06491_ Penetrated by HV Slug. 06491_ Critical hit. 06491_ Hrd. Light Armor Plating destroyed. 06495_ Penetrated by HV Slug. Map ----- +----------------------------------------------------+ | """#?????????????????????????????????????? | | """##????????????????????????????????????? | | """""????????????????????????????????????? | | """##????????????????????????????????????? | | "X" """""????????????????????????????????????? | | """ #?????????????????????????????????????? | | """""""""#?????????????????????????????????????? | | ###########?????????????????????????????????????? | | #???????????????????????????????????????????????? | | #???????????????????????????????????????????????? | | ##??????????????????????????????????????????????? | | ##???###########???????????????????????????????? | | #####"""" """"##??????????????????????????????? | | " """ """"##?????????????????????????????? | | "" " #?????????????????????????????? | | """#?????????????????????????????? | | a"#???????????#####?????????????? | | " "##?????????##" #?????????????? | | "###???????#" #?????????????# | | ""#??????##" ##????????????# | | " "#????### ###????????### | | ##""" ###??# ########## | | ?##""" ;#?#; #""""## | | ??#"""" !!### | | ?##"" !! ## | | ##"""" @ #### | | "" g ""#?#"""""#### | | #"""##?#######??#### | | #####??????????????##### | | #??????????????????????# | | #??????????????????????? | | "" " # #??????????????????????? | | #""" " " "" ##??????????????????????? | | #####""" """ ###???????????????????????? | | ????###""""## # # ###???????????????????????? | | ###???######?## ####??????????????????????????? | | " #???????????# ## ?????????????????????????????? | | #?????????????###??????????????????????????????? | | "#??????????????????????????????????????????????? | | "#??????????????????????????????????????????????? | | ###??????????????????????????????????????????????? | | ?????????????????????????????????????????????????? | | ?????????????????????????????????????????????????? | | ?????????????????????????????????????????????????? | | ?????????????????????????????????????????????????? | | ?????????????????????????????????????????????????? | | ?????????????????????????????????????????????????? | | ?????????????????????????????????????????????????? | | ?????????????????????????????????????????????????? | | ?????????????????????????????????????????????????? | +----------------------------------------------------+ Best States ------------- Heat Dissipation 28 Energy Generation 18 Energy Capacity 250 Matter Stores 300 Matter Capacity 300 Sight Range 16 Terrain Scan Density 10 Armor Coverage 300 Evasion (%) 40 Recoil Reduction 2 Item Schematics ----------------- None Robot Schematics ------------------ None Fabricated ------------ Nothing Alien Tech Used ----------------- None Achievements -------------- None Challenges ------------ None Game ------ Seed MagneticTacticalLance Manual? 0 Play Time 00:39:04 Cumulative 727.2 hours Start 2020.09.16 @ 19:59:27 End 2020.09.16 @ 20:42:49 Sessions 1 Manual Loads 0 Difficulty Rogue Special Mode None Game No. 471 Rogue 471 Adventurer 0 Explorer 0 Win Type - Total 109 Types 75/6/8/10/5/1/4/0/0 Lore% 94 Gallery% 94 Achievement% 81 Wizard Run 0 Options --------- ASCII 0 Keyboard 0 Movement Numpad Keybinds 0 Fullscreen 2 Font 18/SmallcapsGlow Map View 76x50 Tactical HUD 1 Map Filters NONE Filters NONE Steam 1 RUN: 8b2001b8-7411-48a7-a47c-4b368df8db54